bitfinex/quotes_SOLUSD_20240827
["timestamp","ask_amount","ask_price","bid_price","bid_amount"]
[1724724492086,0.8215956,158.94,158.93,1.25830678]
[1724724492500,0.8215956,158.94,158.92,6.2924]
[1724724493808,0.8215956,158.94,158.91,6.2928]
[1724724495526,0.8215956,158.94,158.92,6.2924]
[1724724496501,0.8215956,158.94,158.93,7.55026287]
[1724724496704,0.8215956,158.94,158.93,52.55026287]
[1724724497299,0.8215956,158.94,158.93,51.292]
[1724724497507,0.8215956,158.94,158.93,6.292]
[1724724500006,0.8215956,158.94,158.93,52.55013624]
[1724724500324,0.8215956,158.94,158.93,51.292]
[1724724500615,0.8215956,158.94,158.93,61.08915386]
[1724724500821,0.8215956,158.94,158.93,62.34724402]
[1724724504722,0.8215956,158.94,158.93,61.08915386]
[1724724507127,0.8215956,158.94,158.93,62.34722932]
[1724724507623,0.8215956,158.94,158.93,61.08915386]
[1724724509723,0.8215956,158.94,158.93,51.292]
[1724724510506,0.8215956,158.94,158.93,6.292]
[1724724513306,0.8215956,158.94,158.92,22.0227]
[1724724513506,0.8215956,158.94,158.92,15.7304]
[1724724514609,0.8215956,158.94,158.89,15.7339]
[1724724514829,6.2925,158.92,158.87,6.2944]
[1724724515161,6.80070453,158.92,158.87,6.2944]
[1724724515689,9.79715386,158.93,158.88,1.25867276]
[1724724515690,6.292,158.93,158.88,1.25867276]
[1724724515847,20.0,158.92,158.88,1.25867276]
[1724724517546,20.0,158.92,158.87,6.2944]
[1724724517923,6.2932,158.91,158.85,22.0324]
[1724724518124,6.2932,158.9,158.85,15.7375]
[1724724518337,16.2473,158.89,158.85,15.7375]
[1724724520337,16.2473,158.89,158.81,15.7412]
[1724724520338,6.2948,158.86,158.81,15.7412]
[1724724520857,6.80300453,158.86,158.81,15.7412]
[1724724521259,16.09165386,158.87,158.81,22.0378]
[1724724521445,20.0,158.86,158.81,22.0378]
[1724724521842,20.50820453,158.86,158.81,22.0378]
[1724724522834,12.90280453,158.85,158.8,6.2972]
[1724724523770,20.0,158.84,158.8,6.2972]
[1724724524059,20.0,158.84,158.77,25.54235386]
[1724724524060,20.0,158.84,158.78,6.2976]
[1724724524362,20.0,158.84,158.79,6.2974]
[1724724524843,20.0,158.84,158.8,7.55625611]
[1724724525973,20.0,158.84,158.8,6.297]
[1724724531183,20.0,158.84,158.81,7.55595914]
[1724724531340,20.0,158.84,158.82,6.2964]
[1724724531542,20.0,158.86,158.82,6.2964]
[1724724532763,20.0,158.86,158.85,6.2952]
[1724724532973,22.3467,158.89,158.84,6.2955]
[1724724533178,22.3467,158.89,158.85,1.25891372]
[1724724533501,22.3467,158.89,158.84,7.55437964]
[1724724534074,22.3467,158.89,158.84,6.2955]
[1724724534240,20.0,158.88,158.84,6.2955]
[1724724534577,20.0,158.88,158.83,22.0357]
[1724724534746,0.50820453,158.87,158.83,22.0357]
[1724724535086,20.0,158.88,158.83,22.0357]
[1724724535769,26.2941,158.88,158.83,22.0357]
[1724724538668,20.0,158.88,158.84,7.5546447]
[1724724540158,20.0,158.88,158.84,1.2590447]
[1724724540363,20.0,158.9,158.84,46.2590447]
[1724724540848,20.0,158.9,158.84,45.0]
[1724724541056,20.0,158.9,158.83,25.53705386]
[1724724541350,9.79715386,158.89,158.8,9.79715386]
[1724724541552,20.0,158.88,158.81,45.0]
[1724724542061,26.2941,158.88,158.83,6.2956]
[1724724542447,20.0,158.88,158.85,6.2951]
[1724724543758,6.2936,158.9,158.85,6.2951]
[1724724543759,20.0,158.89,158.85,6.2951]
[1724724546777,20.0,158.89,158.84,15.7389]
[1724724546972,6.2932,158.9,158.85,6.2951]
[1724724547268,20.0,158.89,158.85,6.2951]
[1724724553361,26.2938,158.89,158.84,22.0344]
[1724724553561,6.2944,158.87,158.83,6.2959]
[1724724553785,6.2953,158.85,158.81,15.7419]
[1724724553982,20.0,158.84,158.81,15.7419]
[1724724554498,9.79715386,158.82,158.78,15.7448]
[1724724554680,20.0,158.84,158.78,15.7448]
[1724724554856,9.79715386,158.82,158.78,15.7448]
[1724724555762,9.79715386,158.82,158.78,22.0427]
[1724724557683,20.0,158.86,158.82,6.2962]
[1724724557892,294.58861544,158.96,158.82,6.2962]
[1724724557893,0.8215956,158.94,158.91,6.2928]
[1724724558308,0.8215956,158.94,158.92,6.2923]
[1724724558461,0.8215956,158.94,158.93,6.292]
[1724724558982,0.8215956,158.94,158.93,16.08915386]
[1724724560104,0.8215956,158.94,158.93,30.64371243]
[1724724565283,0.8215956,158.94,158.93,46.37381243]
[1724724566694,15.1393,159.01,158.96,15.727]
[1724724566994,15.1393,159.01,158.97,24.35171243]
[1724724567794,15.1393,159.01,158.98,6.29]
[1724724569197,20.0,159.0,158.98,6.29]
[1724724572486,20.0,159.02,158.98,6.29]
[1724724573808,20.0,159.02,158.99,6.2896]
[1724724574097,20.0,159.04,158.99,6.2896]
[1724724577105,26.2877,159.04,158.99,6.2896]
[1724724581810,29.73844888,159.04,158.96,15.727]
[1724724582012,29.73844888,159.04,158.96,22.0175]
[1724724582326,6.2888,159.02,158.96,22.0175]
[1724724582698,20.0,159.01,158.97,6.2904]
[1724724583392,20.0,159.01,158.96,15.727]
[1724724583589,20.0,159.03,158.96,15.727]
[1724724584710,6.2885,159.02,158.97,6.2904]
[1724724584907,20.0,159.01,158.97,6.2904]
[1724724590111,20.0,159.01,158.94,16.442]
[1724724590623,20.0,159.01,158.93,15.7299]
[1724724590791,6.2897,158.99,158.94,6.2916]
[1724724590992,20.0,158.98,158.94,6.2916]
[1724724591332,26.2901,158.98,158.93,22.0219]
[1724724593107,20.0,158.98,158.94,6.2915]
[1724724593308,20.0,159.01,158.94,6.2915]
[1724724594835,6.2897,158.99,158.94,6.2915]
[1724724595011,20.0,158.98,158.94,6.2915]
[1724724596044,20.0,158.98,158.95,6.2912]
[1724724596229,20.0,158.99,158.95,6.2912]
[1724724597014,20.0,158.99,158.96,6.2906]
[1724724597231,20.0,159.0,158.96,6.2906]
[1724724597816,20.0,159.0,158.97,6.2904]
[1724724598022,6.2884,159.03,158.97,15.7253]
[1724724598372,6.2878,159.04,158.99,6.2896]
[1724724598717,6.2881,159.03,158.99,6.2896]
[1724724599317,20.0,159.02,158.99,6.2896]
[1724724599937,20.0,159.02,158.98,16.02844888]
[1724724600644,20.0,159.02,158.99,6.2897]
[1724724600950,20.0,159.03,158.99,6.2897]
[1724724601326,20.0,159.03,158.97,15.7253]
[1724724601529,20.0,159.04,158.97,15.7253]
[1724724602647,9.73844888,159.01,158.94,6.2916]
[1724724602825,20.0,159.0,158.94,6.2916]
[1724724603718,6.2897,158.99,158.94,6.2916]
[1724724604358,6.2897,158.99,158.95,6.2912]
[1724724605152,26.2893,159.0,158.95,6.2912]
[1724724607371,20.0,159.0,158.96,6.2908]
[1724724607530,20.0,159.0,158.97,6.2904]
[1724724607735,20.0,159.01,158.97,6.2904]
[1724724608740,26.2889,159.01,158.96,6.2908]
[1724724610440,26.2889,159.01,158.91,16.6334]
[1724724610441,6.2884,159.03,158.98,6.2897]
[1724724611845,20.0,159.02,158.98,6.2897]
[1724724613624,20.0,159.02,158.99,25.46174888]
[1724724613836,6.2872,159.06,159.01,6.2889]
[1724724614043,20.0,159.05,159.01,6.2889]
[1724724614257,26.2873,159.05,159.0,6.2892]
[1724724614433,20.0,159.05,158.99,25.46174888]
[1724724614640,15.5121,159.07,158.99,25.46174888]
[1724724614641,26.2869,159.06,159.0,6.2889]
[1724724614868,26.2869,159.06,159.01,16.02714888]
[1724724616556,6.79390453,159.09,159.01,25.45974888]
[1724724616743,6.2857,159.09,159.01,25.45974888]
[1724724616941,0.50820453,159.08,159.01,25.45974888]
[1724724617337,6.2857,159.09,159.01,25.45974888]
[1724724617751,6.2857,159.09,159.04,6.2876]
[1724724619465,20.0,159.08,159.04,6.2876]
[1724724620254,6.2877,159.05,158.98,15.725]
[1724724620437,20.50820453,159.04,158.98,15.725]
[1724724620759,20.0,159.04,158.98,25.46344888]
[1724724621733,20.0,159.04,159.01,6.2887]
[1724724622037,0.8215956,159.1,159.01,15.7215]
[1724724622433,20.8215956,159.1,159.01,15.7215]
[1724724622631,6.2862,159.08,159.03,6.2881]
[1724724622865,20.0,159.07,159.03,6.2881]
[1724724623239,26.2865,159.07,159.02,6.2884]
[1724724623659,20.0,159.07,159.04,9.73844888]
[1724724623960,20.8215956,159.1,159.04,9.73844888]
[1724724624669,7.1068956,159.1,159.05,6.2873]
[1724724624864,0.8215956,159.1,159.08,25.45374888]
[1724724625256,0.8215956,159.1,159.08,31.73984888]
[1724724625446,0.8215956,159.1,159.09,6.2857]
[1724724627269,0.8215956,159.1,159.08,15.7153]
[1724724627477,0.8215956,159.1,159.09,6.2857]
[1724724630783,0.8215956,159.1,159.09,30.59603829]
[1724724631486,0.8215956,159.1,159.09,6.2857]
[1724724632486,0.8215956,159.1,159.09,31.8530554]
[1724724632663,0.8215956,159.1,159.09,76.8530554]
[1724724633969,0.8215956,159.1,159.09,92.5877554]
[1724724637384,0.8215956,159.1,159.09,91.33073829]
[1724724645797,0.8215956,159.1,159.09,30.59603829]
[1724724646159,0.8215956,159.1,159.09,16.00847936]
[1724724647077,0.8215956,159.1,159.09,61.00847936]
[1724724647898,0.8215956,159.1,159.09,62.26534328]
[1724724650094,0.8215956,159.1,159.09,61.00847936]
[1724724655284,6.2818,159.19,159.14,6.2836]
[1724724655589,6.79040453,159.18,159.13,31.71707936]
[1724724655816,6.2822,159.18,159.13,31.71707936]
[1724724660119,6.2819,159.19,159.14,6.2837]
[1724724660520,6.2814,159.2,159.15,6.2833]
[1724724664942,6.2814,159.2,159.15,16.00607936]
[1724724667331,0.50820453,159.19,159.15,16.00607936]
[1724724667626,6.2814,159.2,159.15,16.00607936]
[1724724668006,0.50820453,159.19,159.15,16.00607936]
[1724724668712,6.2814,159.2,159.15,16.00607936]
[1724724668930,22.3687,159.21,159.16,6.2828]
[1724724669230,20.0,159.2,159.16,6.2829]
[1724724669911,26.2814,159.2,159.15,31.71357936]
[1724724671215,0.50820453,159.19,159.15,31.71357936]
[1724724673039,26.2814,159.2,159.15,31.71357936]
[1724724677039,26.2814,159.2,159.16,6.2829]
[1724724677218,6.2809,159.22,159.16,6.2829]
[1724724677418,20.0,159.21,159.16,6.2829]
[1724724678720,20.0,159.21,159.17,6.2825]
[1724724679224,26.2813,159.21,159.16,6.2829]
[1724724679821,6.2805,159.23,159.16,9.72277936]
[1724724680024,6.2805,159.23,159.18,9.72277936]
[1724724680630,22.7467,159.25,159.18,25.42817936]
[1724724681015,22.7467,159.25,159.19,6.2817]
[1724724681218,9.6005956,159.26,159.2,9.72277936]
[1724724681417,20.0,159.25,159.22,6.2803]
[1724724681834,3.3215956,159.26,159.23,6.2802]
[1724724682059,3.82980013,159.26,159.23,6.2802]
[1724724682230,10.10890013,159.26,159.21,6.2809]
[1724724682417,10.10890013,159.26,159.2,15.7026]
[1724724682418,10.10890013,159.26,159.2,21.9839]
[1724724686450,9.6006956,159.26,159.21,6.2808]
[1724724686649,0.50820453,159.25,159.21,6.2808]
[1724724688958,9.6006956,159.26,159.21,6.2808]
[1724724689347,9.6006956,159.26,159.21,16.00357936]
[1724724689846,0.50820453,159.25,159.2,15.7026]
[1724724690047,3.3215956,159.26,159.2,25.42537936]
[1724724690435,3.3215956,159.26,159.23,6.2801]
[1724724690759,3.3215956,159.26,159.24,6.2797]
[1724724693762,3.3215956,159.26,159.25,6.2794]
[1724724695067,3.3215956,159.26,159.24,16.00247936]
[1724724696763,3.3215956,159.26,159.24,6.2797]
[1724724699640,0.8215956,159.26,159.24,6.2797]
[1724724700274,0.8215956,159.26,159.25,6.2794]
[1724724701135,0.8215956,159.26,159.24,6.2797]
[1724724704579,0.8215956,159.26,159.23,6.2801]
[1724724704795,0.8215956,159.26,159.23,9.72277936]
[1724724705680,0.8215956,159.26,159.25,6.2794]
[1724724707875,0.8215956,159.26,159.25,21.9779]
[1724724708478,0.8215956,159.26,159.23,9.72277936]
[1724724709590,7.1006956,159.26,159.22,15.7013]
[1724724709885,0.50820453,159.25,159.22,15.7013]
[1724724714371,7.1006956,159.26,159.22,15.7013]
[1724724714573,0.50820453,159.25,159.22,15.7013]
[1724724715500,0.50820453,159.25,159.22,21.9818]
[1724724717808,0.8215956,159.26,159.22,21.9818]
[1724724718396,0.50820453,159.25,159.22,21.9818]
[1724724719501,0.8215956,159.26,159.22,21.9818]
[1724724720095,0.50820453,159.25,159.22,21.9818]
[1724724720282,0.8215956,159.26,159.22,21.9818]
[1724724720687,0.50820453,159.25,159.22,21.9818]
[1724724720910,0.8215956,159.26,159.22,21.9818]
[1724724723613,0.50820453,159.25,159.18,15.7046]
[1724724723900,6.2805,159.23,159.18,15.7046]
[1724724724101,0.50820453,159.22,159.19,6.2817]
[1724724725087,0.50820453,159.22,159.18,21.9867]
[1724724727691,20.0,159.24,159.19,6.2817]
[1724724728474,20.0,159.24,159.2,6.2811]
[1724724729174,0.50820453,159.23,159.2,6.2811]
[1724724729598,0.50820453,159.23,159.19,6.2817]
[1724724733516,26.2798,159.24,159.19,6.2817]
[1724724734487,0.50820453,159.23,159.19,6.2817]
[1724724736235,0.50820453,159.23,159.2,6.2813]
[1724724736503,26.2798,159.24,159.2,6.2813]
[1724724736682,0.50820453,159.23,159.19,6.2817]
[1724724737507,6.78840453,159.23,159.18,21.9867]
[1724724737980,20.0,159.24,159.18,15.7046]
[1724724738306,0.50820453,159.23,159.18,15.7046]
[1724724738883,20.0,159.25,159.18,15.7046]
[1724724739493,0.50820453,159.24,159.18,15.7046]
[1724724739883,0.50820453,159.24,159.2,6.281]
[1724724740091,10.23098389,159.24,159.19,6.2817]
[1724724740285,0.50820453,159.23,159.19,6.2817]
[1724724741706,6.78840453,159.23,159.19,6.2817]
[1724724743113,6.2802,159.23,159.19,6.2817]
[1724724743502,10.54437496,159.26,159.2,6.2813]
[1724724743809,20.0,159.25,159.2,6.2813]
[1724724744719,26.2795,159.25,159.2,6.2813]
[1724724747101,0.8215956,159.26,159.21,9.72277936]
[1724724748802,0.8215956,159.26,159.23,6.2802]
[1724724749802,0.50820453,159.25,159.22,6.2805]
[1724724750200,0.8215956,159.26,159.22,6.2805]
[1724724753403,0.8215956,159.26,159.24,6.2797]
[1724724753723,0.8215956,159.26,159.23,21.9806]
[1724724760318,1.32980013,159.26,159.23,21.9806]
[1724724763233,0.8215956,159.26,159.23,21.9806]
[1724724765445,0.8215956,159.26,159.23,15.7004]
[1724724767148,1.32980013,159.26,159.23,15.7004]
[1724724768837,0.8215956,159.26,159.23,15.7004]
[1724724770237,0.8215956,159.26,159.23,21.9806]
[1724724771012,0.8215956,159.26,159.25,6.2794]
[1724724778138,0.8215956,159.26,159.23,15.7004]
[1724724779244,0.8215956,159.26,159.23,21.9805]
[1724724784632,0.8215956,159.26,159.23,15.7004]
[1724724786050,0.50820453,159.25,159.2,21.9842]
[1724724786347,0.50820453,159.25,159.2,15.7032]
[1724724786530,16.82337496,159.26,159.2,15.7032]
[1724724787540,0.50820453,159.25,159.2,15.7032]
[1724724787749,0.50820453,159.25,159.21,6.2809]
[1724724789260,7.1005956,159.26,159.21,6.2809]
[1724724794560,0.50820453,159.25,159.21,6.2809]
[1724724795142,7.1005956,159.26,159.21,6.2809]
[1724724796031,7.1005956,159.26,159.22,6.2806]
[1724724796364,7.60880013,159.26,159.22,6.2806]
[1724724799139,0.8215956,159.26,159.24,6.2797]
[1724724800375,0.8215956,159.26,159.25,6.2794]
[1724724805872,0.8215956,159.26,159.24,6.2797]
[1724724806051,0.8215956,159.26,159.23,21.9805]
[1724724806645,0.8215956,159.26,159.23,15.7004]
[1724724806855,1.32980013,159.26,159.23,15.7004]
[1724724807056,1.32980013,159.26,159.23,21.9805]
[1724724812376,1.32980013,159.26,159.2,15.7032]
[1724724812581,1.32980013,159.26,159.2,21.9842]
[1724724812582,6.2794,159.25,159.2,21.9842]
[1724724812773,0.50820453,159.24,159.2,21.9842]
[1724724813374,0.8215956,159.26,159.23,6.2802]
[1724724813769,0.8215956,159.26,159.22,6.2805]
[1724724814357,1.32980013,159.26,159.22,6.2805]
[1724724819086,1.32980013,159.26,159.23,6.2801]
[1724724826057,1.32980013,159.26,159.22,6.2805]
[1724724832871,7.60890013,159.26,159.21,6.2809]
[1724724833066,7.60890013,159.26,159.2,15.7032]
[1724724833067,6.2798,159.24,159.2,15.7032]
[1724724833286,0.50820453,159.23,159.2,15.7032]
[1724724835213,0.50820453,159.23,159.2,21.9845]
[1724724835499,0.50820453,159.23,159.2,15.7032]
[1724724835684,45.50820453,159.23,159.2,15.7032]
[1724724835871,51.78850453,159.23,159.16,15.7066]
[1724724836070,51.78850453,159.23,159.18,6.282]
[1724724840300,6.2809,159.22,159.17,6.2825]
[1724724840503,45.50820453,159.21,159.17,6.2825]
[1724724840675,0.50820453,159.2,159.16,21.9895]
[1724724840881,0.50820453,159.2,159.13,15.7102]
[1724724840882,6.2818,159.19,159.13,15.7102]
[1724724841076,0.50820453,159.18,159.13,15.7102]
[1724724841982,6.2818,159.19,159.13,15.7102]
[1724724842180,6.2814,159.2,159.15,6.2833]
[1724724842380,45.0,159.19,159.15,6.2833]
[1724724842607,45.50820453,159.19,159.15,6.2833]
[1724724842814,0.50820453,159.19,159.13,25.43297936]
[1724724843115,0.50820453,159.19,159.16,6.2829]
[1724724843282,26.2815,159.2,159.15,21.9908]
[1724724843481,45.0,159.19,159.15,21.9908]
[1724724844003,26.2815,159.2,159.15,21.9908]
[1724724844378,0.50820453,159.19,159.15,21.9908]
[1724724845395,0.50820453,159.19,159.16,6.2829]
[1724724845708,26.2815,159.2,159.16,6.2829]
[1724724846313,0.50820453,159.19,159.16,6.2829]
[1724724849019,6.79000453,159.19,159.15,15.7076]
[1724724849183,0.50820453,159.19,159.15,21.9909]
[1724724850517,45.0,159.2,159.15,21.9909]
[1724724850805,51.2815,159.2,159.15,21.9909]
[1724724851480,0.50820453,159.19,159.15,21.9909]
[1724724851677,20.0,159.21,159.15,15.7076]
[1724724852694,20.0,159.21,159.17,6.2825]
[1724724855134,20.0,159.21,159.15,15.7076]
[1724724855135,0.50820453,159.2,159.16,6.2829]
[1724724856931,26.281,159.21,159.16,6.2829]
[1724724857304,6.57300621,159.25,159.17,15.7058]
[1724724857598,0.50820453,159.24,159.17,15.7058]
[1724724857804,0.50820453,159.23,159.17,15.7058]
[1724724858197,6.2809,159.22,159.17,21.988]
[1724724858402,0.50820453,159.21,159.17,21.988]
[1724724859326,6.2809,159.22,159.17,21.988]
[1724724861798,16.00297936,159.23,159.18,6.282]
[1724724862024,65.0,159.22,159.18,6.282]
[1724724862223,20.0,159.22,159.18,6.282]
[1724724862428,22.82534277,159.26,159.19,9.72277936]
[1724724862429,0.8215956,159.26,159.19,9.72277936]
[1724724863131,0.8215956,159.26,159.22,6.2802]
[1724724863705,20.8215956,159.26,159.22,6.2802]
[1724724865031,21.32980013,159.26,159.22,6.2802]
[1724724866238,27.60880013,159.26,159.21,21.9825]
[1724724867531,27.1005956,159.26,159.21,21.9825]
[1724724868024,20.8215956,159.26,159.22,6.2805]
[1724724868225,21.32980013,159.26,159.23,6.2802]
[1724724870131,27.60880013,159.26,159.21,21.9822]
[1724724871830,27.1005956,159.26,159.21,21.9822]
[1724724872946,0.50820453,159.25,159.21,21.9822]
[1724724873537,27.1005956,159.26,159.21,21.9822]
[1724724875249,0.50820453,159.25,159.21,21.9822]
[1724724876923,27.1005956,159.26,159.21,21.9822]
[1724724879616,6.78770453,159.25,159.21,15.7016]
[1724724883039,27.1005956,159.26,159.21,21.9824]
[1724724883538,6.78760453,159.25,159.21,15.7016]
[1724724884423,0.50820453,159.25,159.21,21.9825]
[1724724887238,6.2794,159.25,159.21,21.9825]
[1724724887828,6.78760453,159.25,159.21,21.9825]
[1724724888036,27.1005956,159.26,159.21,21.9825]
[1724724888213,27.1005956,159.26,159.21,15.7016]
[1724724888522,27.1005956,159.26,159.21,21.9822]
[1724724889123,27.60880013,159.26,159.21,21.9822]
[1724724889630,21.32980013,159.26,159.22,6.2805]
[1724724890952,27.60880013,159.26,159.21,21.9825]
[1724724891434,6.2794,159.25,159.21,15.7016]
[1724724891732,0.50820453,159.24,159.21,15.7016]
[1724724896043,6.2802,159.23,159.18,21.9869]
[1724724896224,0.50820453,159.22,159.18,15.7051]
[1724724896427,6.2802,159.23,159.18,15.7051]
[1724724896635,45.0,159.24,159.19,6.2817]
[1724724896954,20.8215956,159.26,159.22,6.2806]
[1724724897259,21.32980013,159.26,159.22,6.2806]
[1724724898120,20.8215956,159.26,159.22,6.2806]
[1724724899538,0.50820453,159.25,159.22,6.2806]
[1724724901539,20.8215956,159.26,159.22,6.2806]
[1724724903155,21.32980013,159.26,159.22,15.7007]
[1724724903363,1.32980013,159.26,159.22,15.7007]
[1724724904857,0.8215956,159.26,159.22,15.7007]
[1724724905032,1.32980013,159.26,159.24,6.2798]
[1724724906060,0.8215956,159.26,159.24,6.2798]
[1724724910160,1.32980013,159.26,159.24,6.2798]
[1724724910367,1.32980013,159.26,159.23,6.2801]
[1724724912352,1.32980013,159.26,159.22,15.7007]
[1724724912735,21.32980013,159.26,159.22,15.7007]
[1724724912932,27.60890013,159.26,159.22,15.7007]
[1724724915856,21.32980013,159.26,159.22,21.9812]
[1724724916066,20.8215956,159.26,159.22,21.9812]
[1724724918047,27.60880013,159.26,159.22,21.9812]
[1724724918356,6.2794,159.25,159.2,6.2813]
[1724724918561,31.05257949,159.26,159.19,15.7042]
[1724724918562,0.50820453,159.24,159.19,15.7042]
[1724724918749,27.1005956,159.26,159.2,1.25629444]
[1724724918937,20.8215956,159.26,159.22,6.2806]
[1724724919139,20.8215956,159.26,159.23,6.2802]
[1724724919460,0.8215956,159.26,159.24,6.2797]
[1724724920671,0.8215956,159.26,159.25,7.53537882]
[1724724921859,0.8215956,159.26,159.25,6.2794]
[1724724922072,0.8215956,159.26,159.25,16.00217936]
[1724724924459,0.8215956,159.26,159.25,6.2794]
[1724724926070,0.8215956,159.26,159.23,15.6996]
[1724724927765,0.8215956,159.26,159.23,21.9798]
[1724724930272,0.8215956,159.26,159.24,6.2797]
[1724724931882,0.8215956,159.26,159.25,6.2794]
[1724724950361,0.8215956,159.26,159.25,16.00217936]
[1724724955562,0.8215956,159.26,159.25,17.57477719]
[1724724956167,0.8215956,159.26,159.25,16.00217936]
[1724724956769,0.8215956,159.26,159.25,6.2794]
[1724724956976,0.8215956,159.26,159.25,16.00217936]
[1724724958363,0.8215956,159.26,159.25,17.57479622]
[1724724959963,0.8215956,159.26,159.25,16.00217936]
[1724724960170,0.8215956,159.26,159.25,17.57479588]
[1724724961693,0.8215956,159.26,159.25,18.83034705]
[1724724962397,0.8215956,159.26,159.25,18.83033617]
[1724724963389,0.8215956,159.26,159.25,17.574785]
[1724724963691,0.8215956,159.26,159.25,18.83022085]
[1724724964897,0.8215956,159.26,159.25,17.574785]
[1724724967410,0.8215956,159.26,159.25,67.15084721]
[1724724968801,0.8215956,159.26,159.25,63.83270256]
[1724724969186,0.8215956,159.26,159.25,67.1505218]
[1724724970099,0.8215956,159.26,159.25,17.574785]
[1724724970305,0.8215956,159.26,159.25,16.00217936]
[1724724970493,0.8215956,159.26,159.25,17.57474911]
[1724724972019,0.8215956,159.26,159.25,16.00217936]
[1724724972342,0.8215956,159.26,159.25,17.5747318]
[1724724972493,0.8215956,159.26,159.25,17.5747211]
[1724724973703,0.8215956,159.26,159.25,23.40615955]
[1724724973894,0.8215956,159.26,159.25,22.14821778]
[1724724975201,0.8215956,159.26,159.25,23.40619149]
[1724724975395,0.8215956,159.26,159.25,23.40648596]
[1724724977321,0.8215956,159.26,159.25,20.8930496]
[1724724977815,0.8215956,159.26,159.25,17.5747211]
[1724724978012,0.8215956,159.26,159.25,1.57254174]
[1724724978228,0.8215956,159.26,159.23,15.6996]
[1724724979217,0.8215956,159.26,159.25,6.2794]
[1724724992235,0.8215956,159.26,159.23,25.42237936]
[1724724992236,0.8215956,159.26,159.23,1.25564085]
[1724724992417,0.8215956,159.26,159.2,15.7031]
[1724724992418,6.2798,159.24,159.2,15.7031]
[1724724992620,11.05257949,159.26,159.2,15.7031]
[1724724992924,11.05257949,159.26,159.17,31.412]
[1724724992925,25.93177936,159.24,159.17,21.9884]
[1724724993101,20.0,159.23,159.18,1.5731766]
[1724724993301,0.50820453,159.22,159.16,6.2829]
[1724724993529,6.78880453,159.22,159.16,6.2829]
[1724724993949,6.2806,159.22,159.17,6.2824]
[1724724994116,26.2802,159.23,159.17,6.2824]
[1724724994308,0.50820453,159.22,159.17,6.2824]
[1724724994629,6.78910453,159.22,159.16,6.2829]
[1724724994836,6.2809,159.22,159.16,6.2829]
[1724724995039,6.2811,159.21,159.14,21.9926]
[1724724995248,0.50820453,159.2,159.14,15.7093]
[1724724995455,0.50820453,159.2,159.15,6.2832]
[1724724995742,6.2818,159.19,159.14,21.993]
[1724724997332,16.71720453,159.18,159.14,15.7093]
[1724724997521,16.209,159.18,159.14,15.7093]
[1724724998624,16.71720453,159.18,159.14,15.7093]
[1724724998970,22.96410453,159.18,159.14,15.7093]
[1724724999248,22.4559,159.18,159.14,15.7093]
[1724724999419,22.4559,159.18,159.14,21.9928]
[1724724999619,16.209,159.18,159.15,7.53977572]
[1724724999934,16.209,159.18,159.15,6.2832]
[1724725001744,16.209,159.18,159.1,15.7127]
[1724725001745,0.50820453,159.17,159.1,15.7127]
[1724725001959,0.50820453,159.17,159.13,6.284]
[1724725002117,32.21427936,159.18,159.13,6.284]
[1724725002446,32.21427936,159.18,159.09,9.72277936]
[1724725002447,16.209,159.18,159.14,6.2837]
[1724725002779,0.50820453,159.17,159.14,6.2837]
[1724725003762,0.50820453,159.17,159.12,21.9946]
[1724725004473,0.50820453,159.17,159.13,6.284]
[1724725004669,22.4911,159.18,159.13,6.284]
[1724725004843,16.209,159.18,159.13,6.284]
[1724725005534,22.4913,159.18,159.13,6.284]
[1724725005756,20.0,159.17,159.12,15.7105]
[1724725005946,33.03770453,159.17,159.12,15.7105]
[1724725006743,33.03770453,159.17,159.12,21.995]
[1724725010343,26.2469,159.17,159.14,6.2837]
[1724725010645,26.2469,159.17,159.12,15.7105]
[1724725010646,16.209,159.18,159.15,7.53992531]
[1724725010861,16.209,159.18,159.16,6.2829]
[1724725011170,6.2469,159.21,159.17,6.2825]
[1724725012251,20.0,159.2,159.15,15.7084]